fUSD/lending_fUSD_20251210
["ID","MTS","AMOUNT","RATE_DAILY","PERIOD"]
[398101406,1765365067039,-1156.86,0.00018904,2]
[398101407,1765365067048,-565.18,0.00018904,2]
[398101408,1765365067058,-604.6,0.00018904,2]
[398101409,1765365067068,-833.33,0.00018904,2]
[398101410,1765365067078,-656.72,0.00018904,2]
[398101411,1765365067087,-957.74,0.00018904,2]
[398101412,1765365067097,-587.32,0.00018904,2]
[398101413,1765365067107,-624.78,0.00018904,2]
[398101414,1765365067116,-500.0,0.00018904,2]
[398101415,1765365067126,-300.0,0.00019,2]
[398101416,1765365067135,-1006.0,0.00019,2]
[398101417,1765365067145,-402.42785336,0.00019068,2]
[398101418,1765365067155,-1007.16,0.00019178,2]
[398101419,1765365067164,-985.23,0.00019178,2]
[398101420,1765365067174,-520.52,0.00019178,2]
[398101421,1765365067184,-515.36,0.00019178,2]
[398101422,1765365067193,-575.21,0.00019178,2]
[398101423,1765365067203,-511.87,0.00019178,2]
[398101424,1765365067212,-1490.1,0.00019178,2]
[398101425,1765365067222,-1156.86,0.00019178,2]
[398101426,1765365067232,-565.18,0.00019178,2]
[398101427,1765365067242,-604.6,0.00019178,2]
[398101428,1765365067252,-833.33,0.00019178,2]
[398101429,1765365067263,-656.72,0.00019178,2]
[398101430,1765365067272,-957.74,0.00019178,2]
[398101431,1765365067282,-587.32,0.00019178,2]
[398101432,1765365067292,-624.78,0.00019178,2]
[398101433,1765365067302,-290.60911291,0.00019178,2]
[398101434,1765365067312,-1006.0,0.0001919,2]
[398101435,1765365067322,-500.0,0.00019199,2]
[398101436,1765365067331,-1000.0,0.00019254,2]
[398101437,1765365067342,-1880.5048211,0.0001934,2]
[398101438,1765365067351,-1006.0,0.0001938,2]
[398101439,1765365067361,-1007.16,0.00019452,2]
[398101440,1765365067370,-985.23,0.00019452,2]
[398101441,1765365067380,-520.52,0.00019452,2]
[398101442,1765365067390,-515.36,0.00019452,2]
[398101443,1765365067399,-575.21,0.00019452,2]
[398101444,1765365067408,-511.87,0.00019452,2]
[398101445,1765365067418,-1490.1,0.00019452,2]
[398101446,1765365067427,-1156.86,0.00019452,2]
[398101447,1765365067437,-565.18,0.00019452,2]
[398101448,1765365067451,-604.6,0.00019452,2]
[398101449,1765365067462,-833.33,0.00019452,2]
[398101450,1765365067472,-656.72,0.00019452,2]
[398101451,1765365067484,-957.74,0.00019452,2]
[398101452,1765365067494,-587.32,0.00019452,2]
[398101453,1765365067504,-624.78,0.00019452,2]
[398101454,1765365067513,-1006.0,0.0001957,2]
[398101455,1765365067524,-1007.16,0.00019726,2]
[398101456,1765365067534,-985.23,0.00019726,2]
[398101457,1765365067544,-520.52,0.00019726,2]
[398101458,1765365067554,-515.36,0.00019726,2]
[398101459,1765365067564,-575.21,0.00019726,2]
[398101460,1765365067573,-511.87,0.00019726,2]
[398101461,1765365067583,-1490.1,0.00019726,2]
[398101462,1765365067593,-1156.86,0.00019726,2]
[398101463,1765365067603,-565.18,0.00019726,2]
[398101464,1765365067612,-604.6,0.00019726,2]
[398101465,1765365067622,-833.33,0.00019726,2]
[398101466,1765365067631,-656.72,0.00019726,2]
[398101467,1765365067641,-957.74,0.00019726,2]
[398101468,1765365067651,-587.32,0.00019726,2]
[398101469,1765365067660,-624.78,0.00019726,2]
[398101470,1765365067670,-981.38285252,0.00019785,2]
[398101471,1765365067679,-2000.0,0.0002,2]
[398101472,1765365067689,-1007.36147026,0.0002,2]
[398101473,1765365067699,-985.42800677,0.0002,2]
[398101474,1765365067709,-520.55151321,0.0002,2]
[398101475,1765365067718,-515.47723061,0.0002,2]
[398101476,1765365067727,-575.33958769,0.0002,2]
[398101477,1765365067737,-512.09443234,0.0002,2]
[398101478,1765365067746,-500.0,0.0002,2]
[398101479,1765365067756,-500.0,0.0002,2]
[398101480,1765365067765,-500.0,0.0002,2]
[398101481,1765365067774,-635.78413059,0.0002,2]
[398101482,1765365067784,-500.0,0.0002,2]
[398101483,1765365067794,-500.0,0.0002,2]
[398101484,1765365067803,-500.0,0.0002,2]
[398101485,1765365067813,-500.0,0.0002,2]
[398101486,1765365067823,-500.0,0.0002,2]
[398101487,1765365067833,-500.0,0.0002,2]
[398101488,1765365067845,-500.0,0.0002,2]
[398101489,1765365067857,-500.0,0.0002,2]
[398101490,1765365067868,-500.0,0.0002,2]
[398101491,1765365067878,-500.0,0.0002,2]
[398101492,1765365067888,-500.0,0.0002,2]
[398101493,1765365067898,-874.92944319,0.0002,2]
[398101494,1765365067909,-1490.12848934,0.0002,2]
[398101495,1765365067920,-1156.89550864,0.0002,2]
[398101496,1765365067930,-565.30502347,0.0002,2]
[398101497,1765365067940,-604.81316147,0.0002,2]
[398101498,1765365067949,-833.41,0.0002,2]
[398101499,1765365067959,-656.77562018,0.0002,2]
[398101500,1765365067968,-957.77302174,0.0002,2]
[398101501,1765365067977,-587.4226884,0.0002,2]
[398101502,1765365067987,-624.88161996,0.0002,2]
[398101503,1765365067996,-525.17,0.0002,2]
[398101504,1765365068006,-910.0,0.00020033,2]
[398101505,1765365068016,-1193.129,0.00020033,2]
[398101506,1765365068025,-550.34,0.000202,7]
[398101507,1765365068035,-2530.05,0.00020357,2]
[398101508,1765365068045,-1000.0,0.000207,2]
[398101509,1765365068055,-500.0,0.00020916,2]
[398101510,1765365068064,-333.30232116,0.00020916,2]
[398101511,1765365068177,-67.62283872,0.00020916,2]
[398101512,1765365068187,-1000.0,0.00021005,2]
[398101513,1765365068198,-98.22713857,0.00021277,2]
[398101533,1765366231636,-255.11180394,0.00013699,2]
[398101534,1765366231740,-400.06819606,0.00013699,2]
[398101535,1765366231750,-895.42625105,0.00014792,2]
[398101536,1765366231761,-166.57374895,0.00014792,2]
[398101537,1765366231770,-300.0,0.00014792,2]
[398101538,1765366231780,-500.0,0.00014793,2]
[398101539,1765366231790,-500.0,0.00014793,2]
[398101540,1765366231799,-232.81624881,0.00015676,2]
[398101541,1765366231808,-188.23000224,0.0001575,2]
[398101542,1765366231827,-543.31058992,0.0001575,2]
[398101576,1765366242768,-4473.55240388,0.0001575,2]
[398101577,1765366242982,-658.769994,0.0001575,2]
[398101578,1765366243035,-450.21563332,0.0001575,2]
[398101580,1765366245675,-476.51,0.0001575,2]
[398101581,1765366245729,-13861.54804547,0.0001575,2]
[398101582,1765366245835,-261.8250045,0.0001575,2]
[398101583,1765366245967,-7576.76425133,0.0001575,2]
[398101617,1765367431831,-203.41976557,0.00015549,2]
[398101620,1765367431842,-397.04,0.00015571,2]
[398101621,1765367431854,-1573.88606358,0.00015581,2]
[398101622,1765367431865,-459.15286162,0.00015585,2]
[398101623,1765367431874,-265.8445,0.00015649,2]
[398101624,1765367431885,-1843.91565459,0.0001565,2]
[398101625,1765367431894,-10.92725656,0.00015723,3]
[398101626,1765367431907,-806.20515522,0.00015723,3]
[398101627,1765367431931,-181.86758822,0.00015723,3]
[398101628,1765367431942,-1200.0,0.00015748,2]
[398101629,1765367431952,-255.0,0.00015749,2]
[398101630,1765367431963,-1000.0,0.00015749,2]
[398101631,1765367431975,-300.0,0.00015749,2]
[398101632,1765367431988,-363.13241172,0.00015749,2]
[398101633,1765367432020,-511.71246314,0.00015749,2]
[398101634,1765367432049,-125.15512514,0.00015749,2]
[398101635,1765367432060,-257.20486486,0.0001575,2]
[398101636,1765367432073,-329.24117934,0.0001575,2]
[398101637,1765367432105,-85531.36063423,0.0001575,2]
[398101638,1765367432121,-2316.0,0.0001575,2]
[398101639,1765367432134,-1594.4736441,0.0001575,2]
[398101640,1765367432146,-1292.2457146,0.0001575,2]
[398101646,1765367438056,-1701.45604782,0.0001575,2]
[398101647,1765367438109,-9911.88097392,0.0001575,2]
[398101648,1765367438122,-578.49675351,0.0001575,2]
[398101649,1765367438135,-2287.28623699,0.0001575,2]
[398101650,1765367438146,-2256.70555665,0.0001575,2]
[398101651,1765367438164,-3557.83562371,0.0001575,2]
[398101652,1765367438175,-500.0,0.0001575,2]
[398101653,1765367438187,-73745.17027027,0.0001575,2]
[398101654,1765367438200,-184.4797801,0.000158,2]
[398101655,1765367438211,-500.0,0.00015848,2]
[398101656,1765367438221,-500.0,0.00015848,2]
[398101657,1765367438231,-359.34,0.00015848,2]
[398101658,1765367438244,-500.0,0.00015848,2]
[398101659,1765367438261,-500.0,0.00015848,2]
[398101660,1765367438272,-500.0,0.00015848,2]
[398101661,1765367438283,-500.0,0.00015848,2]
[398101662,1765367438293,-500.0,0.00015848,2]
[398101663,1765367438305,-500.0,0.00015848,2]
[398101664,1765367438315,-500.0,0.00015848,2]
[398101665,1765367438327,-500.0,0.00015848,2]
[398101666,1765367438337,-500.0,0.00015848,2]
[398101667,1765367438347,-283.08,0.00015848,2]
[398101668,1765367438356,-500.0,0.00015848,2]
[398101669,1765367438367,-223.16185045,0.00015848,2]
[398101670,1765367438376,-500.0,0.00015848,2]
[398101671,1765367438386,-500.0,0.00015849,2]
[398101672,1765367438396,-500.0,0.00015849,2]
[398101673,1765367438405,-500.0,0.00015849,2]
[398101674,1765367438419,-500.0,0.00015849,2]
[398101675,1765367438428,-500.0,0.00015849,2]
[398101676,1765367438438,-500.0,0.00015849,2]
[398101677,1765367438448,-500.0,0.00015849,2]
[398101678,1765367438457,-500.0,0.00015849,2]
[398101679,1765367438467,-500.0,0.00015849,2]
[398101680,1765367438477,-396.86758884,0.00015849,2]
[398101681,1765367438487,-609.71399923,0.00015849,2]
[398101682,1765367438497,-500.0,0.00015849,2]
[398101683,1765367438507,-500.0,0.00015849,2]
[398101684,1765367438517,-500.0,0.00015849,2]
[398101685,1765367438526,-500.0,0.00015849,2]
[398101686,1765367438540,-500.0,0.00015849,2]
[398101687,1765367438549,-500.0,0.00015849,2]
[398101688,1765367438559,-425.4753205,0.00015849,2]
[398101689,1765367438569,-500.0,0.00015849,2]
[398101690,1765367438578,-500.0,0.00015849,2]
[398101691,1765367438588,-500.0,0.00015849,2]
[398101692,1765367438599,-500.0,0.00015849,2]
[398101693,1765367438610,-500.0,0.00015849,2]
[398101694,1765367438621,-500.0,0.00015849,2]
[398101695,1765367438632,-500.0,0.00015849,2]
[398101696,1765367438643,-507.53944741,0.00015849,2]
[398101697,1765367438652,-500.0,0.00015849,2]
[398101698,1765367438662,-500.0,0.00015849,2]
[398101699,1765367438672,-500.0,0.00015849,2]
[398101700,1765367438682,-500.0,0.00015849,2]
[398101701,1765367438692,-500.0,0.00015849,2]
[398101702,1765367438702,-500.0,0.00015849,2]
[398101703,1765367438712,-500.0,0.00015849,2]
[398101704,1765367438722,-500.0,0.00015849,2]
[398101705,1765367438732,-500.0,0.00015849,2]
[398101706,1765367438742,-500.0,0.00015849,2]
[398101707,1765367438752,-500.0,0.00015849,2]
[398101708,1765367438762,-500.0,0.00015849,2]
[398101709,1765367438771,-500.0,0.00015849,2]
[398101710,1765367438781,-500.0,0.00015849,2]
[398101711,1765367438792,-500.0,0.00015849,2]
[398101712,1765367438801,-500.0,0.00015849,2]
[398101713,1765367438811,-500.0,0.00015849,2]
[398101714,1765367438821,-500.0,0.00015849,2]
[398101715,1765367438830,-500.0,0.00015849,2]
[398101716,1765367438840,-500.0,0.00015849,2]
[398101717,1765367438850,-500.0,0.00015849,2]
[398101718,1765367438860,-500.0,0.00015849,2]
[398101719,1765367438870,-500.0,0.00015849,2]
[398101720,1765367438879,-500.0,0.00015849,2]
[398101721,1765367438889,-500.0,0.00015849,2]
[398101722,1765367438899,-500.0,0.00015849,2]
[398101723,1765367438909,-500.0,0.00015849,2]
[398101724,1765367438919,-500.0,0.00015849,2]
[398101726,1765367438930,-500.0,0.00015849,2]
[398101728,1765367438940,-500.0,0.00015849,2]
[398101730,1765367438950,-500.0,0.00015849,2]
[398101733,1765367438961,-500.0,0.00015849,2]
[398101734,1765367438972,-500.0,0.00015849,2]
[398101735,1765367438986,-557.92,0.00015849,2]
[398101736,1765367439007,-183.62671943,0.00015849,2]
[398101737,1765367439019,-500.0,0.00015849,2]
[398101738,1765367439030,-500.0,0.00015849,2]
[398101739,1765367439041,-500.0,0.00015849,2]
[398101740,1765367439052,-500.0,0.00015849,2]
[398101741,1765367439064,-500.0,0.00015849,2]
[398101742,1765367439075,-500.0,0.00015849,2]
[398101743,1765367439086,-500.0,0.00015849,2]
[398101744,1765367439096,-500.0,0.00015849,2]
[398101745,1765367439107,-500.0,0.00015849,2]
[398101746,1765367439118,-500.0,0.00015849,2]
[398101747,1765367439128,-500.0,0.00015849,2]
[398101748,1765367439139,-500.0,0.00015849,2]
[398101749,1765367439149,-500.0,0.00015849,2]
[398101750,1765367439159,-500.0,0.00015849,2]
[398101751,1765367439169,-500.0,0.00015849,2]
[398101752,1765367439180,-500.0,0.00015849,2]
[398101753,1765367439190,-500.0,0.00015849,2]
[398101754,1765367439200,-500.0,0.00015849,2]
[398101755,1765367439211,-500.0,0.00015849,2]
[398101756,1765367439222,-529.7,0.00015849,2]
[398101757,1765367439233,-501.10644115,0.00015849,2]
[398101758,1765367439243,-500.0,0.00015849,2]
[398101759,1765367439253,-500.0,0.00015849,2]
[398101760,1765367439264,-500.0,0.00015849,2]
[398101761,1765367439277,-500.0,0.00015849,2]
[398101762,1765367439287,-500.0,0.00015849,2]
[398101763,1765367439298,-500.0,0.00015849,2]
[398101764,1765367439308,-616.01487865,0.00015849,2]
[398101765,1765367439319,-500.0,0.00015849,2]
[398101766,1765367439329,-199.26834621,0.00015849,2]
[398101767,1765367439339,-500.0,0.00015849,2]
[398101768,1765367439350,-227.63531996,0.00015849,2]
[398101769,1765367439360,-500.0,0.00015849,2]
[398101770,1765367439371,-500.0,0.00015849,2]
[398101771,1765367439381,-500.0,0.00015849,2]
[398101772,1765367439391,-500.0,0.00015849,2]
[398101773,1765367439402,-500.0,0.00015849,2]
[398101774,1765367439412,-500.0,0.00015849,2]
[398101775,1765367439423,-345.84,0.00015849,2]
[398101776,1765367439433,-500.0,0.00015849,2]
[398101777,1765367439443,-500.0,0.00015849,2]
[398101778,1765367439454,-500.0,0.00015849,2]
[398101779,1765367439464,-500.0,0.00015849,2]
[398101780,1765367439475,-500.0,0.00015849,2]
[398101781,1765367439485,-500.0,0.00015849,2]
[398101782,1765367439495,-500.0,0.00015849,2]
[398101783,1765367439506,-500.0,0.00015849,2]
[398101784,1765367439518,-500.0,0.00015849,2]
[398101785,1765367439528,-500.0,0.00015849,2]
[398101786,1765367439543,-500.0,0.00015849,2]
[398101787,1765367439554,-500.0,0.00015849,2]
[398101788,1765367439565,-500.0,0.00015849,2]
[398101789,1765367439577,-500.0,0.00015849,2]
[398101790,1765367439588,-500.0,0.00015849,2]
[398101791,1765367439599,-500.0,0.00015849,2]
[398101792,1765367439610,-500.0,0.00015849,2]
[398101793,1765367439623,-500.0,0.00015849,2]
[398101794,1765367439633,-13.51890097,0.00015849,2]
[398101795,1765367439651,-486.48109903,0.00015849,2]
[398101796,1765367439661,-500.0,0.00015849,2]
[398101797,1765367439672,-500.0,0.00015849,2]
[398101798,1765367439682,-500.0,0.00015849,2]
[398101799,1765367439694,-500.0,0.00015849,2]
[398101800,1765367439704,-500.0,0.00015849,2]
[398101801,1765367439715,-500.0,0.00015849,2]
[398101802,1765367439725,-30.64948809,0.00015849,2]
[398101803,1765367439738,-469.35051191,0.00015849,2]
[398101804,1765367439749,-386.96726749,0.00015849,2]
[398101805,1765367439759,-500.0,0.00015849,2]
[398101806,1765367439770,-510.15302612,0.00015849,2]
[398101807,1765367439780,-500.0,0.00015849,2]
[398101808,1765367439791,-500.0,0.00015849,2]
[398101809,1765367439802,-561.82,0.00015849,2]
[398101810,1765367439813,-500.0,0.00015849,2]
[398101811,1765367439824,-237.9,0.00015849,2]
[398101812,1765367439834,-500.0,0.00015849,2]
[398101814,1765367439845,-189.68,0.00015849,2]
[398101816,1765367439855,-500.0,0.00015849,2]
[398101818,1765367439866,-272.18,0.00015849,2]
[398101819,1765367439877,-500.0,0.00015849,2]
[398101820,1765367439887,-500.0,0.00015849,2]
[398101821,1765367439897,-338.92,0.00015849,2]
[398101823,1765367439907,-266.08,0.00015849,2]
[398101824,1765367439922,-500.0,0.00015849,2]
[398101825,1765367439933,-244.59587379,0.00015849,2]
[398101826,1765367439983,-255.40412621,0.00015849,2]
[398101827,1765367439993,-558.78,0.00015849,2]
[398101828,1765367440003,-500.0,0.00015849,2]
[398101829,1765367440014,-500.0,0.00015849,2]
[398101830,1765367440026,-500.0,0.00015849,2]
[398101831,1765367440037,-500.0,0.00015849,2]
[398101832,1765367440047,-565.78,0.00015849,2]
[398101833,1765367440060,-500.0,0.00015849,2]
[398101834,1765367440072,-500.0,0.00015849,2]
[398101835,1765367440084,-500.0,0.00015849,2]
[398101836,1765367440097,-500.0,0.00015849,2]
[398101837,1765367440108,-500.0,0.00015849,2]
[398101838,1765367440119,-500.0,0.00015849,2]
[398101839,1765367440130,-500.0,0.00015849,2]
[398101840,1765367440141,-286.43881444,0.00015849,2]
[398101841,1765367440151,-572.01296449,0.00015849,2]
[398101842,1765367440163,-500.0,0.00015849,2]
[398101843,1765367440174,-500.0,0.00015849,2]
[398101844,1765367440184,-500.0,0.00015849,2]
[398101845,1765367440195,-500.0,0.00015849,2]
[398101846,1765367440206,-599.5,0.00015849,2]
[398101847,1765367440217,-500.0,0.00015849,2]
[398101848,1765367440227,-500.0,0.00015849,2]
[398101849,1765367440238,-500.0,0.00015849,2]
[398101850,1765367440249,-500.0,0.00015849,2]
[398101851,1765367440259,-500.0,0.00015849,2]
[398101852,1765367440270,-317.12,0.00015849,2]
[398101853,1765367440280,-500.0,0.00015849,2]
[398101854,1765367440294,-500.0,0.00015849,2]
[398101855,1765367440306,-500.0,0.00015849,2]
[398101856,1765367440316,-500.0,0.00015849,2]
[398101857,1765367440327,-525.74,0.00015849,2]
[398101858,1765367440338,-52658.28992009,0.0001585,2]
[398101859,1765367440348,-1097.76491199,0.000159,2]
[398101860,1765367440359,-2741.1795008,0.00016023,2]
[398101861,1765367440369,-250.0,0.00016087,2]
[398101862,1765367440380,-500.0,0.00016122,2]
[398101863,1765367440390,-510.27154198,0.00016122,2]
[398101864,1765367440401,-500.0,0.00016122,2]
[398101865,1765367440412,-409.18,0.00016122,2]
[398101866,1765367440422,-500.0,0.00016122,2]
[398101867,1765367440432,-500.0,0.00016122,2]
[398101868,1765367440444,-500.0,0.00016122,2]
[398101869,1765367440465,-500.0,0.00016122,2]
[398101870,1765367440477,-609.01313468,0.00016122,2]
[398101871,1765367440487,-498.1996,0.00016122,2]
[398101872,1765367440499,-308.74,0.00016122,2]
[398101873,1765367440509,-500.0,0.00016123,2]
[398101874,1765367440519,-500.0,0.00016123,2]
[398101875,1765367440531,-500.0,0.00016123,2]
[398101876,1765367440541,-500.0,0.00016123,2]
[398101877,1765367440551,-500.0,0.00016123,2]
[398101878,1765367440952,-500.0,0.00016123,2]
[398101879,1765367440963,-500.0,0.00016123,2]
[398101880,1765367440974,-360.17,0.00016123,2]
[398101881,1765367440990,-586.67,0.00016123,2]
[398101882,1765367441000,-524.47,0.00016123,2]
[398101883,1765367441010,-500.0,0.00016123,2]
[398101884,1765367441020,-500.0,0.00016123,2]
[398101885,1765367441029,-500.0,0.00016123,2]
[398101886,1765367441039,-500.0,0.00016123,2]
[398101887,1765367441049,-500.0,0.00016123,2]
[398101888,1765367441060,-500.0,0.00016123,2]
[398101889,1765367441069,-500.0,0.00016123,2]
[398101890,1765367441079,-500.0,0.00016123,2]
[398101891,1765367441089,-245.08,0.00016123,2]
[398101892,1765367441098,-500.0,0.00016123,2]
[398101893,1765367441108,-500.0,0.00016123,2]
[398101894,1765367441118,-500.0,0.00016123,2]
[398101895,1765367441127,-500.0,0.00016123,2]
[398101896,1765367441137,-500.0,0.00016123,2]
[398101897,1765367441146,-500.0,0.00016123,2]
[398101898,1765367441156,-500.0,0.00016123,2]
[398101899,1765367441165,-500.0,0.00016123,2]
[398101900,1765367441175,-624.07,0.00016123,2]
[398101901,1765367441185,-500.0,0.00016123,2]
[398101902,1765367441194,-500.0,0.00016123,2]
[398101903,1765367441204,-500.0,0.00016123,2]
[398101904,1765367441213,-188.28,0.00016123,2]
[398101905,1765367441222,-558.78,0.00016123,2]
[398101906,1765367441232,-500.0,0.00016123,2]
[398101907,1765367441242,-500.0,0.00016123,2]
[398101908,1765367441250,-500.0,0.00016123,2]
[398101909,1765367441260,-500.0,0.00016123,2]
[398101910,1765367441269,-500.0,0.00016123,2]
[398101911,1765367441279,-500.0,0.00016123,2]
[398101912,1765367441288,-435.38246135,0.00016123,2]
[398101913,1765367441297,-500.0,0.00016123,2]
[398101914,1765367441307,-500.0,0.00016123,2]
[398101915,1765367441316,-500.0,0.00016123,2]
[398101916,1765367441325,-500.0,0.00016123,2]
[398101917,1765367441335,-500.0,0.00016123,2]
[398101918,1765367441347,-500.0,0.00016123,2]
[398101919,1765367441356,-500.0,0.00016123,2]
[398101920,1765367441366,-500.0,0.00016123,2]
[398101922,1765367441376,-500.0,0.00016123,2]
[398101924,1765367441385,-441.54,0.00016123,2]
[398101926,1765367441394,-164.04,0.00016123,2]
[398101928,1765367441404,-324.82840712,0.00016199,2]
[398101930,1765367441414,-500.0,0.00016199,2]
[398101932,1765367441423,-500.0,0.00016199,2]
[398101934,1765367441432,-500.0,0.00016199,2]
[398101936,1765367441441,-500.0,0.00016199,2]
[398101938,1765367441451,-500.0,0.00016199,2]
[398101940,1765367441461,-195.32723918,0.00016199,2]
[398101942,1765367441470,-500.0,0.00016199,2]
[398101944,1765367441480,-500.0,0.00016199,2]
[398101946,1765367441489,-500.0,0.00016199,2]
[398101948,1765367441498,-500.0,0.00016199,2]
[398101950,1765367441508,-6172.4801328,0.000162,5]
[398101952,1765367441517,-10728.81,0.00016269,2]
[398101954,1765367441527,-154.32,0.00016305,2]
[398101956,1765367441537,-1852.42,0.00016345,2]
[398101958,1765367441546,-500.0,0.00016396,2]
[398101960,1765367441555,-500.0,0.00016396,2]
[398101962,1765367441564,-500.0,0.00016396,2]
[398101964,1765367441573,-500.0,0.00016396,2]
[398101966,1765367441583,-500.0,0.00016396,2]
[398101968,1765367441593,-500.0,0.00016396,2]
[398101969,1765367441602,-500.0,0.00016397,2]
[398101970,1765367441612,-500.0,0.00016397,2]
[398101971,1765367441623,-500.0,0.00016397,2]
[398101972,1765367441633,-320.48740997,0.00016397,2]
[398101973,1765367441643,-336.78,0.00016397,2]
[398101974,1765367441652,-500.0,0.00016397,2]
[398101975,1765367441662,-500.0,0.00016397,2]
[398101976,1765367441672,-500.0,0.00016397,2]
[398101977,1765367441681,-593.98482897,0.00016397,2]
[398101978,1765367441691,-500.0,0.00016397,2]
[398101979,1765367441700,-500.0,0.00016397,2]
[398101980,1765367441710,-500.0,0.00016397,2]
[398101981,1765367441719,-500.0,0.00016397,2]
[398101982,1765367441728,-500.0,0.00016397,2]
[398101983,1765367441737,-500.0,0.00016397,2]
[398101984,1765367441747,-500.0,0.00016397,2]
[398101985,1765367441756,-500.0,0.00016397,2]
[398101986,1765367441765,-500.0,0.00016397,2]
[398101987,1765367441775,-558.78,0.00016397,2]
[398101988,1765367441783,-500.0,0.00016397,2]
[398101989,1765367441793,-500.0,0.00016397,2]
[398101990,1765367441802,-500.0,0.00016397,2]
[398101991,1765367441811,-500.0,0.00016397,2]
[398101992,1765367441821,-500.0,0.00016397,2]
[398101993,1765367441830,-500.0,0.00016397,2]
[398101994,1765367441839,-500.0,0.00016397,2]
[398101995,1765367441848,-500.0,0.00016397,2]
[398101996,1765367441857,-500.0,0.00016397,2]
[398101997,1765367441867,-285.27,0.00016397,2]
[398101998,1765367441876,-500.0,0.00016397,2]
[398101999,1765367441885,-500.0,0.00016397,2]
[398102000,1765367441894,-500.0,0.00016397,2]
[398102001,1765367441904,-300.0,0.00016438,2]
[398102002,1765367441914,-300.0,0.00016438,2]
[398102003,1765367441925,-300.0,0.00016438,2]
[398102004,1765367441934,-2345.58,0.00016438,2]
[398102005,1765367441943,-164.21,0.0001644,2]
[398102006,1765367441955,-2575.07,0.00016472,2]
[398102007,1765367441965,-500.0,0.00016487,2]
[398102008,1765367441975,-241.27179585,0.0001667,2]
[398102009,1765367441989,-500.0,0.0001667,2]
[398102010,1765367441999,-500.0,0.0001667,2]
[398102011,1765367442009,-500.0,0.0001667,2]
[398102012,1765367442018,-500.0,0.0001667,2]
[398102013,1765367442029,-500.0,0.00016671,2]
[398102014,1765367442038,-500.0,0.00016671,2]
[398102015,1765367442047,-500.0,0.00016671,2]
[398102016,1765367442058,-300.0,0.00016671,2]
[398102017,1765367442067,-500.0,0.00016671,2]
[398102018,1765367442077,-500.0,0.00016671,2]
[398102019,1765367442088,-500.0,0.00016671,2]
[398102020,1765367442097,-500.0,0.00016671,2]
[398102021,1765367442106,-500.0,0.00016671,2]
[398102022,1765367442115,-436.27821654,0.00016671,2]
[398102023,1765367442134,-500.0,0.00016671,2]
[398102024,1765367442146,-500.0,0.00016671,2]
[398102025,1765367442156,-500.0,0.00016671,2]
[398102026,1765367442165,-500.0,0.00016671,2]
[398102027,1765367442175,-500.0,0.00016671,2]
[398102028,1765367442185,-500.0,0.00016671,2]
[398102029,1765367442196,-558.78,0.00016671,2]
[398102030,1765367442205,-500.0,0.00016671,2]
[398102031,1765367442215,-500.0,0.00016671,2]